[Event "Live Chess"]
[Site "Chess.com"]
[Date "2021.02.10"]
[Round "1"]
[White "pjkrizzle"]
[Black "austin809"]
[Result "0-1"]
[CurrentPosition "4q3/8/8/8/8/3K4/5k2/8 w - -"]
[Timezone "UTC"]
[ECO "A48"]
[ECOUrl "https://www.chess.com/openings/Indian-Game-East-Indian-London-System"]
[UTCDate "2021.02.10"]
[UTCTime "02:31:38"]
[WhiteElo "1538"]
[BlackElo "1639"]
[TimeControl "2100+2"]
[Termination "austin809 won by resignation"]
[StartTime "02:31:38"]
[EndDate "2021.02.10"]
[EndTime "03:43:58"]
[Link "https://www.chess.com/live/game/6507739561"]

1. d4 {[%clk 0:34:18.6]} 1... Nf6 {[%clk 0:34:54.6]} 2. Nf3 {[%clk 0:34:16.4]} 2... g6 {[%clk 0:34:49.4]} 3. Bf4 {[%clk 0:34:14.2]} 3... d6 {[%clk 0:34:23.7]} 4. e3 {[%clk 0:34:09.3]} 4... Bg7 {[%clk 0:33:29.5]} 5. Be2 {[%clk 0:34:02.7]} 5... O-O {[%clk 0:32:10.8]} 6. O-O {[%clk 0:33:30.4]} 6... Nh5 {[%clk 0:32:04.6]} 7. Bg5 {[%clk 0:32:37.8]} 7... h6 {[%clk 0:31:35.2]} 8. Bh4 {[%clk 0:32:15.8]} 8... Bf5 {[%clk 0:29:42.9]} 9. c3 {[%clk 0:31:59.7]} 9... Nd7 {[%clk 0:27:36.8]} 10. Nbd2 {[%clk 0:31:33.5]} 10... Ndf6 {[%clk 0:26:10.1]} 11. Ne1 {[%clk 0:31:07.3]} 11... g5 {[%clk 0:23:35.2]} 12. Bxg5 {[%clk 0:30:53.7]} 12... hxg5 {[%clk 0:23:25.5]} 13. Bxh5 {[%clk 0:30:53.6]} 13... Nxh5 {[%clk 0:23:08.1]} 14. Qxh5 {[%clk 0:30:52.9]} 14... e5 {[%clk 0:21:21.9]} 15. d5 {[%clk 0:28:21.1]} 15... Bg6 {[%clk 0:19:22.9]} 16. Qe2 {[%clk 0:26:10.9]} 16... f5 {[%clk 0:17:59.2]} 17. e4 {[%clk 0:24:32.1]} 17... f4 {[%clk 0:16:08.2]} 18. a4 {[%clk 0:24:15.9]} 18... Kf7 {[%clk 0:15:25.7]} 19. Qg4 {[%clk 0:17:12.8]} 19... Qe7 {[%clk 0:13:53.5]} 20. b4 {[%clk 0:14:24.4]} 20... Rh8 {[%clk 0:13:31.2]} 21. g3 {[%clk 0:14:10.5]} 21... Bh5 {[%clk 0:12:29.6]} 22. Qf5+ {[%clk 0:14:04.8]} 22... Bf6 {[%clk 0:12:27]} 23. Nef3 {[%clk 0:13:30.4]} 23... Kg7 {[%clk 0:10:51]} 24. gxf4 {[%clk 0:11:06.5]} 24... gxf4 {[%clk 0:09:42.5]} 25. Kh1 {[%clk 0:10:53.4]} 25... Bg6 {[%clk 0:08:15.1]} 26. Rg1 {[%clk 0:10:34.4]} 26... Rh6 {[%clk 0:07:11.9]} 27. Rg4 {[%clk 0:09:54.3]} 27... Kh7 {[%clk 0:06:25.1]} 28. Qe6 {[%clk 0:07:29]} 28... Qxe6 {[%clk 0:05:55.6]} 29. dxe6 {[%clk 0:07:27.3]} 29... Re8 {[%clk 0:05:42.3]} 30. Rag1 {[%clk 0:06:47.5]} 30... Rxe6 {[%clk 0:04:37]} 31. Ng5+ {[%clk 0:06:34.3]} 31... Bxg5 {[%clk 0:04:36.9]} 32. Rxg5 {[%clk 0:06:35.3]} 32... Rh3 {[%clk 0:04:28.7]} 33. f3 {[%clk 0:06:21.3]} 33... Rf6 {[%clk 0:03:33.8]} 34. Kg2 {[%clk 0:05:59.5]} 34... Rh5 {[%clk 0:03:07.4]} 35. Rg4 {[%clk 0:05:49.1]} 35... Be8 {[%clk 0:02:51.1]} 36. Kh1 {[%clk 0:05:02.5]} 36... Rg6 {[%clk 0:02:28.4]} 37. a5 {[%clk 0:04:38.2]} 37... Rxg4 {[%clk 0:02:23.4]} 38. fxg4 {[%clk 0:04:18.9]} 38... Rh3 {[%clk 0:02:06.2]} 39. Rc1 {[%clk 0:03:50.1]} 39... Bd7 {[%clk 0:01:52.9]} 40. g5 {[%clk 0:03:40.8]} 40... Kg6 {[%clk 0:01:49.8]} 41. c4 {[%clk 0:03:28.1]} 41... Bg4 {[%clk 0:01:47.3]} 42. Kg2 {[%clk 0:03:18.8]} 42... Kxg5 {[%clk 0:01:29.5]} 43. c5 {[%clk 0:03:14.5]} 43... Rd3 {[%clk 0:01:24.8]} 44. Nf1 {[%clk 0:02:55.6]} 44... Bh3+ {[%clk 0:01:22.9]} 45. Kf2 {[%clk 0:02:49]} 45... Bxf1 {[%clk 0:01:17.4]} 46. Rxf1 {[%clk 0:02:46.8]} 46... Rb3 {[%clk 0:01:17]} 47. Rg1+ {[%clk 0:02:36.4]} 47... Kf6 {[%clk 0:01:14.9]} 48. h4 {[%clk 0:02:25.9]} 48... Rh3 {[%clk 0:01:10.6]} 49. Rg4 {[%clk 0:02:12.2]} 49... dxc5 {[%clk 0:01:10.7]} 50. bxc5 {[%clk 0:01:54]} 50... b6 {[%clk 0:01:07.4]} 51. Kg2 {[%clk 0:01:38.7]} 51... Rg3+ {[%clk 0:01:03.9]} 52. Rxg3 {[%clk 0:01:37.8]} 52... fxg3 {[%clk 0:01:05.8]} 53. axb6 {[%clk 0:01:26.5]} 53... axb6 {[%clk 0:01:05.1]} 54. cxb6 {[%clk 0:01:24.1]} 54... cxb6 {[%clk 0:01:05.7]} 55. h5 {[%clk 0:01:25.1]} 55... Kg5 {[%clk 0:01:06.1]} 56. h6 {[%clk 0:01:23.8]} 56... Kxh6 {[%clk 0:01:06.5]} 57. Kxg3 {[%clk 0:01:24.8]} 57... b5 {[%clk 0:01:06.6]} 58. Kf3 {[%clk 0:01:26]} 58... b4 {[%clk 0:01:07.5]} 59. Ke3 {[%clk 0:01:27.3]} 59... Kg5 {[%clk 0:01:08.5]} 60. Kd3 {[%clk 0:01:28]} 60... b3 {[%clk 0:01:09.5]} 61. Kc3 {[%clk 0:01:28.5]} 61... Kf4 {[%clk 0:01:11]} 62. Kxb3 {[%clk 0:01:29.7]} 62... Kxe4 {[%clk 0:01:12.1]} 63. Kc2 {[%clk 0:01:30.7]} 63... Kf3 {[%clk 0:01:12.9]} 64. Kd1 {[%clk 0:01:31.6]} 64... Kf2 {[%clk 0:01:13.6]} 65. Kd2 {[%clk 0:01:31.7]} 65... e4 {[%clk 0:01:15.1]} 66. Kd1 {[%clk 0:01:31]} 66... e3 {[%clk 0:01:16]} 67. Kc1 {[%clk 0:01:31.4]} 67... e2 {[%clk 0:01:17.3]} 68. Kd2 {[%clk 0:01:32.5]} 68... e1=Q+ {[%clk 0:01:18.2]} 69. Kd3 {[%clk 0:01:33.6]} 69... Qe8 {[%clk 0:01:18.4]} 0-1

[Event "Live Chess"]
[Site "Chess.com"]
[Date "2021.02.10"]
[Round "1"]
[White "worsepot"]
[Black "victor6688"]
[Result "0-1"]
[CurrentPosition "8/8/8/8/8/3pK3/2k5/8 w - -"]
[Timezone "UTC"]
[ECO "A45"]
[ECOUrl "https://www.chess.com/openings/Indian-Game"]
[UTCDate "2021.02.10"]
[UTCTime "02:31:45"]
[WhiteElo "1022"]
[BlackElo "1469"]
[TimeControl "2100+2"]
[Termination "victor6688 won by resignation"]
[StartTime "02:31:45"]
[EndDate "2021.02.10"]
[EndTime "03:15:57"]
[Link "https://www.chess.com/live/game/6507739741"]

1. d4 {[%clk 0:34:59]} 1... Nf6 {[%clk 0:34:53.2]} 2. Bf4 {[%clk 0:34:58.6]} 2... g6 {[%clk 0:34:51.7]} 3. Nf3 {[%clk 0:34:55.6]} 3... Bg7 {[%clk 0:34:45.1]} 4. e3 {[%clk 0:34:55.4]} 4... d5 {[%clk 0:34:40.3]} 5. Nbd2 {[%clk 0:34:49.7]} 5... O-O {[%clk 0:34:30]} 6. Bd3 {[%clk 0:34:49.6]} 6... Nc6 {[%clk 0:33:36]} 7. c3 {[%clk 0:34:47.4]} 7... Bd7 {[%clk 0:33:28.3]} 8. Qe2 {[%clk 0:34:23.2]} 8... Re8 {[%clk 0:33:15.1]} 9. O-O-O {[%clk 0:34:21.5]} 9... a5 {[%clk 0:32:04.8]} 10. h3 {[%clk 0:34:12.1]} 10... a4 {[%clk 0:31:32.8]} 11. a3 {[%clk 0:34:06.7]} 11... Na5 {[%clk 0:31:03.6]} 12. Ne5 {[%clk 0:33:27.4]} 12... Nb3+ {[%clk 0:30:25.7]} 13. Kb1 {[%clk 0:32:51.9]} 13... Nxd2+ {[%clk 0:28:45.5]} 14. Qxd2 {[%clk 0:32:45.3]} 14... Nh5 {[%clk 0:27:59]} 15. Bg5 {[%clk 0:30:48.7]} 15... Be6 {[%clk 0:26:36.4]} 16. Ng4 {[%clk 0:30:34.1]} 16... Qd7 {[%clk 0:25:16.7]} 17. Be2 {[%clk 0:30:05.5]} 17... Bf5+ {[%clk 0:24:57.7]} 18. Ka1 {[%clk 0:29:54.4]} 18... h6 {[%clk 0:24:05.7]} 19. Bxh6 {[%clk 0:27:36.1]} 19... Nf6 {[%clk 0:23:31]} 20. Bxg7 {[%clk 0:26:07.8]} 20... Kxg7 {[%clk 0:23:22.5]} 21. Rdg1 {[%clk 0:25:17.2]} 21... Nxg4 {[%clk 0:23:10.1]} 22. hxg4 {[%clk 0:25:17.3]} 22... Bxg4 {[%clk 0:23:00.2]} 23. Rh4 {[%clk 0:23:13.2]} 23... Bxe2 {[%clk 0:22:43.4]} 24. Qxe2 {[%clk 0:22:21.8]} 24... Rh8 {[%clk 0:22:36.6]} 25. Rxh8 {[%clk 0:22:05.1]} 25... Rxh8 {[%clk 0:22:19.9]} 26. f4 {[%clk 0:21:58]} 26... Rh4 {[%clk 0:21:17.6]} 27. g3 {[%clk 0:21:14.9]} 27... Rh8 {[%clk 0:20:37.6]} 28. g4 {[%clk 0:20:59.3]} 28... c6 {[%clk 0:20:03.9]} 29. Ka2 {[%clk 0:20:56.5]} 29... Rh3 {[%clk 0:19:18.7]} 30. Rg2 {[%clk 0:20:04.4]} 30... Qe6 {[%clk 0:19:14.6]} 31. g5 {[%clk 0:19:22.9]} 31... Qxe3 {[%clk 0:18:55.7]} 32. Qxe3 {[%clk 0:19:11.4]} 32... Rxe3 {[%clk 0:18:28.2]} 33. Rc2 {[%clk 0:18:41.1]} 33... Rf3 {[%clk 0:18:25.2]} 34. b4 {[%clk 0:18:36.8]} 34... axb3+ {[%clk 0:18:21]} 35. Kxb3 {[%clk 0:18:37.7]} 35... Rxf4 {[%clk 0:18:22.2]} 36. Re2 {[%clk 0:18:33.4]} 36... e6 {[%clk 0:18:16.9]} 37. Re5 {[%clk 0:18:14.1]} 37... Rf5 {[%clk 0:18:12.3]} 38. Re3 {[%clk 0:18:02.5]} 38... Rxg5 {[%clk 0:17:54.3]} 39. a4 {[%clk 0:18:03.2]} 39... Rf5 {[%clk 0:17:34.3]} 40. Kb4 {[%clk 0:17:58.4]} 40... g5 {[%clk 0:17:21.1]} 41. Kc5 {[%clk 0:17:57]} 41... g4 {[%clk 0:17:20.2]} 42. Rg3 {[%clk 0:17:41.5]} 42... b5 {[%clk 0:16:55.2]} 43. a5 {[%clk 0:17:35.6]} 43... Rh5 {[%clk 0:16:38.7]} 44. Kxc6 {[%clk 0:17:34.7]} 44... Rh8 {[%clk 0:16:38.6]} 45. Rxg4+ {[%clk 0:17:35.6]} 45... Kf6 {[%clk 0:16:39.4]} 46. Rf4+ {[%clk 0:17:35.7]} 46... Kg6 {[%clk 0:16:39.3]} 47. Kxb5 {[%clk 0:17:35.3]} 47... f5 {[%clk 0:16:37.1]} 48. a6 {[%clk 0:17:30.5]} 48... Kg5 {[%clk 0:16:37.5]} 49. Rf1 {[%clk 0:17:28]} 49... f4 {[%clk 0:16:35.6]} 50. Kb6 {[%clk 0:17:29.1]} 50... Kg4 {[%clk 0:16:35.5]} 51. a7 {[%clk 0:17:30.4]} 51... f3 {[%clk 0:16:34.9]} 52. Rg1+ {[%clk 0:17:28]} 52... Kf4 {[%clk 0:16:29.3]} 53. Kb7 {[%clk 0:17:29.1]} 53... Ke3 {[%clk 0:16:30]} 54. a8=Q {[%clk 0:17:21.4]} 54... Rxa8 {[%clk 0:16:29.5]} 55. Kxa8 {[%clk 0:17:22.7]} 55... f2 {[%clk 0:16:30.5]} 56. Rg3+ {[%clk 0:17:15.5]} 56... Kf4 {[%clk 0:16:23.2]} 57. Rg8 {[%clk 0:17:09.4]} 57... Ke3 {[%clk 0:16:21.1]} 58. Rg3+ {[%clk 0:17:07.7]} 58... Ke2 {[%clk 0:16:10]} 59. Rg2 {[%clk 0:16:57]} 59... Kf3 {[%clk 0:14:38.3]} 60. Rg8 {[%clk 0:16:54.3]} 60... Ke2 {[%clk 0:14:37.8]} 61. Rf8 {[%clk 0:16:45.9]} 61... f1=Q {[%clk 0:14:36.4]} 62. Rxf1 {[%clk 0:16:46.9]} 62... Kxf1 {[%clk 0:14:37.6]} 63. Kb7 {[%clk 0:16:48.5]} 63... Ke2 {[%clk 0:14:38.8]} 64. Kc6 {[%clk 0:16:50.1]} 64... Kd3 {[%clk 0:14:39.2]} 65. Kc5 {[%clk 0:16:48.9]} 65... Kxc3 {[%clk 0:14:30.2]} 66. Kd6 {[%clk 0:16:46.5]} 66... Kxd4 {[%clk 0:14:31]} 67. Kxe6 {[%clk 0:16:48.4]} 67... Kc4 {[%clk 0:14:31.2]} 68. Ke5 {[%clk 0:16:49.8]} 68... d4 {[%clk 0:14:32.5]} 69. Ke4 {[%clk 0:16:51.5]} 69... Kc3 {[%clk 0:14:30.4]} 70. Kf3 {[%clk 0:16:51.1]} 70... d3 {[%clk 0:14:31.1]} 71. Ke3 {[%clk 0:16:49.7]} 71... Kc2 {[%clk 0:14:30.9]} 0-1

[Event "Live Chess"]
[Site "Chess.com"]
[Date "2021.02.10"]
[Round "1"]
[White "SebbyMeister"]
[Black "rtindru"]
[Result "1-0"]
[CurrentPosition "8/7R/8/2p1kp1p/2B5/8/5PKP/8 b - -"]
[Timezone "UTC"]
[ECO "C54"]
[ECOUrl "https://www.chess.com/openings/Giuoco-Piano-Game-Center-Attack-Mason-Gambit"]
[UTCDate "2021.02.10"]
[UTCTime "02:32:00"]
[WhiteElo "1754"]
[BlackElo "1554"]
[TimeControl "2100+2"]
[Termination "SebbyMeister won by resignation"]
[StartTime "02:32:00"]
[EndDate "2021.02.10"]
[EndTime "02:56:24"]
[Link "https://www.chess.com/live/game/6507739887"]

1. e4 {[%clk 0:34:44.1]} 1... e5 {[%clk 0:34:56.4]} 2. Nf3 {[%clk 0:34:39.6]} 2... Nc6 {[%clk 0:34:51.3]} 3. Bc4 {[%clk 0:34:38.4]} 3... Bc5 {[%clk 0:34:50]} 4. c3 {[%clk 0:34:10.3]} 4... Nf6 {[%clk 0:34:46.7]} 5. d4 {[%clk 0:34:10.3]} 5... exd4 {[%clk 0:33:44.5]} 6. O-O {[%clk 0:34:06.9]} 6... O-O {[%clk 0:33:11.3]} 7. cxd4 {[%clk 0:34:05.1]} 7... Bb4 {[%clk 0:32:43.9]} 8. a3 {[%clk 0:33:57.1]} 8... Be7 {[%clk 0:32:15.8]} 9. e5 {[%clk 0:32:36.3]} 9... Ne8 {[%clk 0:31:24.3]} 10. d5 {[%clk 0:32:23]} 10... Na5 {[%clk 0:31:18]} 11. Ba2 {[%clk 0:31:51.1]} 11... d6 {[%clk 0:31:11.6]} 12. b4 {[%clk 0:31:46.9]} 12... dxe5 {[%clk 0:30:34.5]} 13. bxa5 {[%clk 0:31:43.1]} 13... Nd6 {[%clk 0:30:31.4]} 14. Nxe5 {[%clk 0:31:29.5]} 14... Bf6 {[%clk 0:30:29.2]} 15. Bb2 {[%clk 0:31:28.1]} 15... b6 {[%clk 0:30:06.9]} 16. Nc6 {[%clk 0:30:11.2]} 16... Qd7 {[%clk 0:29:43.1]} 17. Bxf6 {[%clk 0:30:08]} 17... gxf6 {[%clk 0:29:44.6]} 18. Re1 {[%clk 0:29:58.3]} 18... Re8 {[%clk 0:28:48.1]} 19. Nc3 {[%clk 0:29:21.6]} 19... Bb7 {[%clk 0:28:00.5]} 20. Qf3 {[%clk 0:28:43.4]} 20... Kg7 {[%clk 0:27:48.7]} 21. Ne4 {[%clk 0:27:04.6]} 21... Nxe4 {[%clk 0:27:41.8]} 22. Rxe4 {[%clk 0:27:02.8]} 22... Rxe4 {[%clk 0:27:33.2]} 23. Qxe4 {[%clk 0:27:02.8]} 23... Re8 {[%clk 0:27:27.4]} 24. Qb4 {[%clk 0:26:23.7]} 24... Bxc6 {[%clk 0:27:07.4]} 25. dxc6 {[%clk 0:26:21.5]} 25... Qxc6 {[%clk 0:27:04.1]} 26. Qg4+ {[%clk 0:25:56.4]} 26... Kh8 {[%clk 0:27:03.3]} 27. Qf3 {[%clk 0:25:19]} 27... Qxf3 {[%clk 0:26:35.5]} 28. gxf3 {[%clk 0:25:19.3]} 28... Kg7 {[%clk 0:26:25.4]} 29. Rc1 {[%clk 0:25:14.2]} 29... c5 {[%clk 0:26:16.7]} 30. axb6 {[%clk 0:25:09.2]} 30... axb6 {[%clk 0:26:08.3]} 31. Bc4 {[%clk 0:25:07.5]} 31... Ra8 {[%clk 0:26:00.4]} 32. Rb1 {[%clk 0:25:05.5]} 32... Rxa3 {[%clk 0:25:41.4]} 33. Rxb6 {[%clk 0:25:03.8]} 33... Rxf3 {[%clk 0:25:42.8]} 34. Rb7 {[%clk 0:24:58.3]} 34... h6 {[%clk 0:25:22]} 35. Bxf7 {[%clk 0:24:57.2]} 35... Rc3 {[%clk 0:25:12.2]} 36. Rc7 {[%clk 0:24:46.2]} 36... f5 {[%clk 0:25:07.2]} 37. Kg2 {[%clk 0:24:39.4]} 37... Kf6 {[%clk 0:24:58.7]} 38. Bd5 {[%clk 0:24:38.8]} 38... Ke5 {[%clk 0:24:53.4]} 39. Bg8 {[%clk 0:24:33.2]} 39... h5 {[%clk 0:24:28.1]} 40. Rh7 {[%clk 0:24:25.7]} 40... Rc4 {[%clk 0:24:19.4]} 41. Bxc4 {[%clk 0:24:25.2]} 1-0